Cogmind - Beta 13 @@@ ROGUE MODE // 2024.04.20 @ 15:11:13 Player: Tornaido Result: Destroyed by X-62 Marksman with Gauss Rifle Performance ------------- Evolutions (3) 1500 Regions Visited (5) 1000 Robots Destroyed (105) 525 Value Destroyed (3540) 3540 Prototype IDs (1) 20 Alien Tech Used (0) 0 Bonus (186) 186 TOTAL SCORE: 6771 Bonus ------- High Alert Combat Kills 186 Cogmind --------- Core Integrity 0/700 Matter 243/300 Energy 100/100 System Corruption 6% Temperature Cool (0) Movement Core (450) Ox8 Location -7/Factory Parts ------- > --- POWER (1) -------- (None) > --- PROPULSION (4) --- (None) > --- UTILITY (5) ------ Large Storage Unit Machine Analyzer Improved Utility Shielding System Restoration Module > --- WEAPON (3) ------- Mini Assault Cannon > --- INVENTORY (15) --- Carbon-fiber Leg Improved Titanium Leg Advanced Heat Sink Matter Filter Improved Shield Generator Improved Field Recycling Unit (51) Remote Datajack Peak State ------------ > --- POWER ------------ Micro Nuclear Core > --- PROPULSION ------- Improved Carbon-fiber Leg Improved Carbon-fiber Leg Improved Carbon-fiber Leg Improved Carbon-fiber Leg > --- UTILITY ---------- Large Storage Unit Machine Analyzer Improved Utility Shielding Layered Light Armor Plating Improved Field Recycling Unit > --- WEAPON ----------- Minigun Gauss Rifle Mini Assault Cannon > --- INVENTORY -------- Micro Nuclear Core Light Angular Momentum Engine Improved Titanium Leg Improved Titanium Leg Improved Titanium Leg Improved Titanium Leg Advanced Heat Sink Hardened Light Armor Plating Hardened Medium Armor Plating Improved Shield Generator Improved Shield Generator Improved Shield Generator System Restoration Module Plasma Cannon High-powered Shotgun [Rating: 52] Favorites ----------- Power Ion Engine Engine Ion Engine Power Core Micro Nuclear Core Propulsion Improved Aluminum Leg Leg Improved Aluminum Leg Utility Large Storage Unit Device Terrain Scanner Storage Large Storage Unit Processor Machine Analyzer Protection Improved Utility Shielding Weapon Minigun Energy Gun Medium Laser Energy Cannon Plasma Cannon Ballistic Gun Minigun Ballistic Cannon Light Cannon Launcher Rocket Launcher Slashing Weapon Axe Build | -11 -10 -10 -9 -8 -7 ------- Run | Yrd Mat Min Mat Mat Fac Slots Evolved 6 | . . . 2 2 2 Power . | . . . . . . Propulsion 2 | . . . 2 . . Utility 3 | . . . . 2 1 Weapon 1 | . . . . . 1 Parts Attached 95 | 5 5 . 15 36 34 Power 12 | 1 . . 3 5 3 Engine 7 | 1 . . 3 2 1 Core 5 | . . . . 3 2 Reactor . | . . . . . . Propulsion 24 | 2 . . 7 8 7 Treads . | . . . . . . Leg 24 | 2 . . 7 8 7 Wheel . | . . . . . . Hover . | . . . . . . Flight . | . . . . . . Utility 35 | 1 3 . 2 11 18 Device 14 | . 2 . . 3 9 Storage 4 | 1 1 . 1 1 . Processor 2 | . . . 1 . 1 Hackware . | . . . . . . Protection 15 | . . . . 7 8 Artifact . | . . . . . . Weapon 24 | 1 2 . 3 12 6 Energy Gun 2 | . 1 . 1 . . Energy Cannon 2 | . . . . . 2 Ballistic Gun 13 | 1 . . 2 9 1 Ballistic Cannon 4 | . 1 . . . 3 Launcher 1 | . . . . 1 . Special Weapon . | . . . . . . Impact Weapon . | . . . . . . Slashing Weapon 2 | . . . . 2 . Piercing Weapon . | . . . . . . Special Melee Weapon . | . . . . . . Unidentified Prototypes 1 | . . . . . 1 Parts Lost 30 | . . . 1 9 20 Power 4 | . . . . . 4 Propulsion 10 | . . . . 3 7 Utility 11 | . . . 1 5 5 Weapon 5 | . . . . 1 4 Highest Loss Streak 9 | . . . 1 2 9 To Critical Strikes . | . . . . . . Average Slot Usage (%) 97 | . 90 100 98 98 96 Engine 5 | . 14 14 10 3 . Core 3 | . . . . 5 6 Leg 33 | . 28 28 44 35 28 Device 3 | . 7 14 1 1 3 Storage 9 | . 14 14 11 9 7 Processor 4 | . . . 8 2 5 Protection 13 | . . . . 21 20 Ballistic Gun 13 | . 14 14 10 13 13 Ballistic Cannon 6 | . 1 14 11 1 6 Naked Turns . | . . . . . . Heaviest Build 63 | 12 21 21 31 49 63 Greatest Support 78 | 20 20 20 52 72 78 Greatest Overweight (x) 12 | 1 1 1 . 1 12 Average Overweight (x) . | . . 1 . . . Largest Inventory Capacity 15 | 8 10 10 15 15 15 Average Capacity 13 | 7 8 10 13 15 15 Most Carried 15 | 5 10 10 12 15 15 Average Carried 11 | 2 5 8 9 13 13 Final Capacity 15 | 8 10 10 15 15 15 Final Carried 15 | 2 8 9 12 15 7 Class Distribution -------------------- 69% | Mutant 30% | Tank Dominant Class ---------------- Mutant | -10/Materials Mutant | -10/Mines Mutant | -9/Materials Mutant | -8/Materials Tank | -7/Factory Resources | -11 -10 -10 -9 -8 -7 ----------- Run | Yrd Mat Min Mat Mat Fac Matter Collected 3007 | 212 154 . 480 1068 1093 Remotely . | . . . . . . Salvage Created 3704 | . 318 . 754 1212 1420 Parts 206 | . 22 . 54 59 71 Haulers Intercepted . | . . . . . . Recyclers Shooed 2 | . 1 . 1 . . Parts Field Recycled 21 | . . . . . 21 Retrieved Matter 269 | . . . . . 269 Parts Self-Destructed . | . . . . . . Prevented . | . . . . . . Kills | -11 -10 -10 -9 -8 -7 ------- Run | Yrd Mat Min Mat Mat Fac Combat Hostiles Destroyed 86 | . 7 . 21 26 32 Melee 2 | . . . . 2 . Guns 44 | . 7 . 8 18 11 Cannons 36 | . . . 13 3 20 AOE 3 | . . . . 3 . Classes Destroyed 13 | . 4 . 2 4 3 Worker 3 | . 2 . . . 1 Builder 1 | . . . . 1 . Recycler 5 | . . . . 1 4 Watcher 10 | . 2 . 3 3 2 Swarmer 27 | . 3 . 7 4 13 Grunt 36 | . 4 . 8 13 11 Brawler 1 | . . . . 1 . Duelist 2 | . . . 1 1 . Protector 1 | . . . . . 1 Sentry 12 | . . . 5 6 1 Specialist 1 | . . . . . 1 Hunter 2 | . . . . 1 1 Programmer 4 | . . . . . 4 Best Kill Streak 7 | . 4 . 4 5 7 Combat Bots Only 5 | . 3 . 4 4 5 Max Kills in Single Turn 2 | . 2 . 1 2 2 Gunslinging 1 | . 1 . . . . Exploded 2 | . . . . 2 . Melee 1 | . . . . 1 . Uniques/NPCs Destroyed . | . . . . . . Combat | -11 -10 -10 -9 -8 -7 -------- Run | Yrd Mat Min Mat Mat Fac Hostile Shots Fired 635 | . 28 . 92 145 370 Missed 175 | . 8 . 28 32 107 Damage Taken 6410 | . 230 . 763 1721 3696 Core 1091 | . 76 . 60 241 714 Absorbed by Shields 19 | . . . . . 19 Redirected to Shielding 138 | . . . . 9 129 Regen/Repaired (Parts) 217 | . . . 150 67 . Core Remaining (%) 77 | 100 . 69 85 56 . Volleys Fired 255 | . 22 . 53 95 85 Largest 3 | . 2 . 2 2 3 Hottest 176 | . 70 . 80 58 176 Shots Fired 563 | . 44 . 106 187 226 Gun 377 | . 44 . 53 158 122 Cannon 182 | . . . 53 25 104 Launcher 4 | . . . . 4 . Special . | . . . . . . Kinetic 520 | . 22 . 103 183 212 Thermal 36 | . 22 . . . 14 Explosive 4 | . . . . 4 . Electromagnetic 3 | . . . 3 . . Robot Hit Streak 11 | . 9 . 9 11 8 Robot Miss Streak 6 | . 3 . 3 3 6 Penetration Max . | . . . . . . Secondary Targets 1 | . 1 . . . . Max Gunslinging Chain 1 | . 1 . . . . Shots Hit Robots 343 | . 26 . 64 144 109 Core Hits 176 | . 19 . 34 63 60 Critical Kills 1 | . . . . . 1 Critical Parts Destroyed . | . . . . . . Critical Strikes 15 | . . . 2 7 6 Meltdown 1 | . . . . . 1 Destroy 1 | . . . . 1 . Blast 9 | . . . 2 2 5 Sever 4 | . . . . 4 . Melee Attacks 11 | . . . . 11 . Impact . | . . . . . . Slashing 11 | . . . . 11 . Piercing . | . . . . . . Sneak Attacks 1 | . . . . 1 . Combat Hostiles . | . . . . . . Follow-up Attacks . | . . . . . . Damage Inflicted 7454 | . 508 1 1101 3013 2831 Guns 4035 | . 368 . 500 1964 1203 Cannons 2369 | . . . 579 291 1499 Explosions 621 | . 140 . . 352 129 Melee 406 | . . . . 406 . Ramming 23 | . . 1 22 . . Kinetic 5939 | . 154 . 1053 2255 2477 Thermal 568 | . 214 . . . 354 Explosive 352 | . . . . 352 . Electromagnetic 166 | . 140 . 26 . . Impact . | . . . . . . Slashing 406 | . . . . 406 . Piercing . | . . . . . . Highest Corruption 6 | . . . . 5 6 Average Corruption 4 | . . . . 5 2 Corruption Purged . | . . . . . . Corruption Blocked . | . . . . . . Effects 36 | . . . . 31 5 Message Errors 6 | . . . . 6 . Matter Fused 8 | . . . . 6 2 Heat Flow Errors 7 | . . . . 7 . Energy Discharges 6 | . . . . 4 2 Parts Rejected 1 | . . . . 1 . Parts Fused 1 | . . . . 1 . Data Loss (minor) 2 | . . . . 2 . Data Loss (major) 3 | . . . . 2 1 Alerts 2 | . . . . 2 . Overload Shots . | . . . . . . Overflow Damage 120 | . . . . 74 46 Projectiles 43 | . . . . . 43 Explosions 16 | . . . . 13 3 Melee 61 | . . . . 61 . Knockbacks 26 | . . . 8 6 12 Impact . | . . . . . . Kinetic 25 | . . . 8 5 12 Secondary 1 | . . . . 1 . Self-Inflicted Damage 65 | . . . . . 65 Shots 1 | . . . . . 1 Rammed . | . . . . . . Targets Rammed 4 | . . 1 3 . . Kicked 4 | . . 1 3 . . Crushed . | . . . . . . Highest Temperature 449 | . 135 . 39 330 449 Average Temperature 90 | . 52 . 12 73 127 Received Heat Transfer 1797 | . 111 . 243 783 660 Effects 6 | . . . . 2 4 Shutdowns 1 | . . . . . 1 Energy Bleed 1 | . . . . 1 . Interference 3 | . . . . 1 2 Short Circuit 1 | . . . . . 1 Siege Activations . | . . . . . . Robots Corrupted . | . . . . . . Combat Hostiles . | . . . . . . Parts Fried 1 | . 1 . . . . Impact Corruptions . | . . . . . . Robots Melted 1 | . . . . . 1 Combat Hostiles 1 | . . . . . 1 Parts Melted 5 | . 1 . . . 4 Heat Transferred 1154 | . 629 . . . 525 Parts Sabotaged . | . . . . . . Parts Stolen . | . . . . . . Parts Stripped . | . . . . . . Power Chain Reactions . | . . . . . . Alert | -11 -10 -10 -9 -8 -7 ------- Run | Yrd Mat Min Mat Mat Fac Peak Influence 526 | . 278 15 387 526 493 Initial 163 | . . . 5 163 135 Average 219 | . 96 7 191 357 189 Maximum Alert Level 2 | . 1 . 1 2 2 Low Security (%) 49 | 100 89 100 56 6 61 Level 1 35 | . 10 . 43 55 27 Level 2 14 | . . . . 37 10 Level 3 . | . . . . . . Level 4 . | . . . . . . Level 5 . | . . . . . . High Security . | . . . . . . Max Security . | . . . . . . Squads Dispatched 12 | . . . 2 4 6 Investigation 2 | . . . 1 1 . Extermination 3 | . . . . . 3 Reinforcement 5 | . . . 1 3 1 Assault . | . . . . . . Garrison 2 | . . . . . 2 Intercept . | . . . . . . Searches Triggered . | . . . . . . Construction Impeded . | . . . . . . Haulers Reinforced . | . . . . . . Active Scanning Responses . | . . . . . . Cargo Convoy Interrupts 1 | . . . . . 1 Stealth | -11 -10 -10 -9 -8 -7 --------- Run | Yrd Mat Min Mat Mat Fac Distress Signals 9 | . 1 . 3 4 1 Communications Jammed . | . . . . . . Distress Signals . | . . . . . . Times Spotted 135 | . 11 3 29 37 55 Peak Tracking Total 10 | . 3 3 5 5 10 Tactical Retreats 5 | . 1 1 . 1 2 Traps | -11 -10 -10 -9 -8 -7 ------- Run | Yrd Mat Min Mat Mat Fac Traps Triggered 1 | . . . . 1 . Indirectly . | . . . . . . Trap Hack Attempts . | . . . . . . Triggered . | . . . . . . Disarmed 1 | . . . 1 . . Reprogrammed . | . . . . . . Reused . | . . . . . . Traps Extracted . | . . . . . . Installed . | . . . . . . Triggered . | . . . . . . Machines | -11 -10 -10 -9 -8 -7 ---------- Run | Yrd Mat Min Mat Mat Fac Machines Disabled 9 | . 3 . 3 1 2 Max in Single Turn 1 | . 1 . 1 1 1 Machines Repaired . | . . . . . . Machines Dismantled . | . . . . . . Machines Sabotaged . | . . . . . . Overloaded Fab Kills . | . . . . . . Hacking | -11 -10 -10 -9 -8 -7 --------- Run | Yrd Mat Min Mat Mat Fac Machines Accessed 33 | . 3 . 10 12 8 Terminals 17 | . 2 . 5 6 4 Fabricators 1 | . . . . . 1 Repair Stations 5 | . . . 2 2 1 Recycling Units 5 | . 1 . 1 2 1 Scanalyzers 3 | . . . 2 1 . Garrison Access 2 | . . . . 1 1 Total Hacks 89 | . 12 . 30 32 15 Successful 45 | . 7 . 18 15 5 Failed 44 | . 5 . 12 17 10 Catastrophic 14 | . . . 2 8 4 Database Lockouts . | . . . . . . Manual 25 | . 7 . 6 10 2 Terminals 39 | . 7 . 10 16 6 Fabricators 2 | . . . . . 2 Repair Stations 17 | . . . 7 7 3 Recycling Units 16 | . 5 . 4 5 2 Scanalyzers 11 | . . . 9 2 . Garrison Access 4 | . . . . 2 2 Terminal Hacks 14 | . 3 . 2 6 3 Record 2 | . . . . 1 1 Robot Analysis 1 | . . . . 1 . Open DSF 1 | . . . . . 1 Level Access Points 1 | . 1 . . . . Branch Access Points 2 | . 1 . . 1 . Emergency Access Points 1 | . . . 1 . . Alert Level 2 | . . . . 1 1 Unreport Threat 2 | . 1 . . 1 . Disarm Traps 1 | . . . 1 . . Zone Layout 1 | . . . . 1 . Fabricator Hacks 1 | . . . . . 1 Load Schematic 1 | . . . . . 1 Repair Station Hacks 8 | . . . 4 4 . Scan Component 5 | . . . 2 3 . Repair 3 | . . . 2 1 . Recycling Unit Hacks 12 | . 4 . 4 3 1 Recycle Component 1 | . 1 . . . . Process 2 | . 1 . 1 . . Report Inventory 6 | . 1 . 2 2 1 Retrieve Matter 1 | . . . 1 . . Retrieve Components 2 | . 1 . . 1 . Scanalyzer 10 | . . . 8 2 . Insert Component 5 | . . . 4 1 . Analyze 5 | . . . 4 1 . Garrison Access Hacks . | . . . . . . Unauthorized Hacks . | . . . . . . Terminals . | . . . . . . Fabricators . | . . . . . . Repair Stations . | . . . . . . Recycling Units . | . . . . . . Scanalyzers . | . . . . . . Garrison Access . | . . . . . . Data Cores Recovered . | . . . . . . Used . | . . . . . . Hacking Detections 32 | . 3 . 10 11 8 Full Trace Events 2 | . 1 . 1 . . Feedback Events . | . . . . . . Feedback Blocked . | . . . . . . Robot Schematics Acquired . | . . . . . . Robots Built . | . . . . . . Authchips . | . . . . . . Time . | . . . . . . Total Robot Build Rating . | . . . . . . Part Schematics Acquired 5 | . . . 4 1 . Parts Built . | . . . . . . Authchips . | . . . . . . Time . | . . . . . . Total Part Build Rating . | . . . . . . Parts Repaired 3 | . . . 2 1 . Time 96 | . . . 58 38 . Parts Recycled 1 | . 1 . . . . Recycled Matter 389 | . 243 . 146 . . Retrieved Matter 146 | . . . 146 . . Retrieved Components 8 | . 3 . . 5 . Parts Scanalyzed 5 | . . . 4 1 . Part Schematics Acquired 5 | . . . 4 1 . Parts Damaged . | . . . . . . Bothacking | -11 -10 -10 -9 -8 -7 ------------ Run | Yrd Mat Min Mat Mat Fac Used RIF Installer . | . . . . . . Robots Hacked . | . . . . . . Non-combat . | . . . . . . Combat . | . . . . . . Robot Hacks Applied . | . . . . . . Relay Couplers Released . | . . . . . . Fabnet Peak Effective % . | . . . . . . Robots Rewired . | . . . . . . Allies Hacked . | . . . . . . Hacks Repelled . | . . . . . . Allies | -11 -10 -10 -9 -8 -7 -------- Run | Yrd Mat Min Mat Mat Fac Total Allies . | . . . . . . Largest Group . | . . . . . . Highest-Rated Group . | . . . . . . Highest-Rated Ally . | . . . . . . Total Orders . | . . . . . . Ally Attacks . | . . . . . . Total Damage . | . . . . . . Kills . | . . . . . . Allies Corrupted . | . . . . . . Allies Melted . | . . . . . . Intel | -11 -10 -10 -9 -8 -7 ------- Run | Yrd Mat Min Mat Mat Fac Robot Analysis Total 1 | . . . . 1 . Derelict Logs Recovered . | . . . . . . Drone Launches . | . . . . . . Drone Recoveries . | . . . . . . Exploration | -11 -10 -10 -9 -8 -7 ------------- Run | Yrd Mat Min Mat Mat Fac Turns Passed 5274 | 47 429 360 1054 1605 1779 Spaces Moved 2988 | 36 257 182 600 871 1042 Core 13 | 12 . . . . 1 Treads . | . . . . . . Legs 2975 | 24 257 182 600 871 1041 Wheels . | . . . . . . Hover . | . . . . . . Flight . | . . . . . . Fastest Speed 50 | 50 120 190 120 120 120 Average Speed 126 | 98 128 190 120 120 124 Slowest Speed 650 | 120 190 190 120 190 650 Overloaded Moves . | . . . . . . Propulsion Burnouts . | . . . . . . Robots Hopped . | . . . . . . Cave-ins Triggered . | . . . . . . Exploration Rate (%) 40 | 4 45 44 65 58 24 Regions Visited 5 Branch Regions 1 Pre-discovered Areas . | . . . . . . Known Exits Taken 2 | . 1 1 . . . Unknown Exits Taken 3 | 1 . . 1 1 . Scrap Searched . | . . . . . . Spaces Dug . | . . . . . . Terrain Destroyed 86 | . . . . 41 45 Melee . | . . . . . . Projectile 16 | . . . . . 16 AOE 70 | . . . . 41 29 Terrain Rammed . | . . . . . . Walls Destroyed . | . . . . . . Machines Disabled . | . . . . . . Actions | -11 -10 -10 -9 -8 -7 --------- Run | Yrd Mat Min Mat Mat Fac Total 4000 | 47 312 196 836 1251 1358 Wait 497 | . 14 11 138 171 163 Move 2983 | 35 256 181 599 870 1042 Hop . | . . . . . . Pick Up 101 | 7 12 2 18 42 20 Fast Attach . | . . . . . . Attach 41 | 5 2 . 5 15 14 Detach . | . . . . . . Swap 54 | . 3 . 10 21 20 Drop 54 | . 3 1 10 26 14 Fire 255 | . 22 . 53 95 85 Melee 11 | . . . . 11 . Ram . | . . . . . . Kick 4 | . . 1 3 . . Crush . | . . . . . . Escape Stasis . | . . . . . . Rewire . | . . . . . . Trap . | . . . . . . Miscellaneous . | . . . . . . Route ------- -11/Scrapyard -10/Materials (discovered 4 exits: Mat x3 / *Min) -10/Mines (discovered 3 exits: *Mat x2 / [*Exi]) -9/Materials (discovered 2 exits: *Mat x2) -8/Materials -7/Factory (discovered 1 exit: [*Sto]) History --------- Turn | Location | Event 8 | -11/Scrapyard | Discovered new exit (range 15) 48 | -11/Scrapyard | Entered Materials 128 | -10/Materials | Identified exit to Mines 128 | -10/Materials | Identified exit to Materials 305 | -10/Materials | Build established: Mutant 477 | -10/Materials | Entered Mines 484 | -10/Mines | Received a Rocket Launcher from a helpful Derelict 493 | -10/Mines | Deemed a non-threat by the Exiles lab entrance 495 | -10/Mines | Discovered new exit (range 5) 585 | -10/Mines | Assembled infested the area 590 | -10/Mines | Assisted by a Guerilla fighting off Assembled 617 | -10/Mines | Discovered exit to Materials (range 14) 766 | -10/Mines | Discovered exit to Materials (range 7) 837 | -10/Mines | Entered Materials 837 | -9/Materials | Evolved 2 slots: Propulsion x2 1229 | -9/Materials | Repaired Ion Engine 1542 | -9/Materials | Discovered new exit (range 14) 1811 | -9/Materials | Discovered new exit (range 10) 1873 | -9/Materials | Repaired Autogun 1891 | -9/Materials | Entered another Materials area 1891 | -8/Materials | Evolved 2 slots: Utility x2 2702 | -8/Materials | Repaired Minigun 3366 | -8/Materials | Discovered new exit (range 13) 3496 | -8/Materials | Entered Factory 3496 | -7/Factory | Evolved 2 slots: Utility x1, Weapon x1 3801 | -7/Factory | Build established: Tank 4172 | -7/Factory | Discovered new exit (range 5) 5080 | -7/Factory | Garrison activated, responded to threat 5167 | -7/Factory | Lost 6 parts (2p1n1u2w) 5249 | -7/Factory | Cargo convoy interrupted 5257 | -7/Factory | Core integrity fell below 50% 5267 | -7/Factory | Core integrity fell below 20% 5275 | -7/Factory | Destroyed by X-62 Marksman with Gauss Rifle Last Messages --------------- 05262_ M-28 Smith repairs X-67 Chaingunner. 05262_ X-67 Chaingunner destroyed. 05262_ K-01 Serf collects debris. 05265_ K-01 Serf cleans the Garrison Access. 05265_ K-01 Serf collects debris. 05267_ K-01 Serf cleans the Terminal. 05267_ K-01 Serf collects debris. 05268_ K-01 Serf cleans the Terminal. 05269_ Slug penetrates Terminal. 05269_ Terminal disabled. 05270_ K-01 Serf collects debris. 05270_ Hrd. Light Armor Plating destroyed. 05270_ K-01 Serf collects debris. 05272_ K-01 Serf cleans the Garrison Access. 05273_ System corrupted: Matter fused (-8). 05273_ K-01 Serf collects debris. 05273_ Lgt. Nuclear Core destroyed. 05273_ K-01 Serf collects debris. 05275_ Acquired Carbon-fiber Leg. 05275_ K-01 Serf collects debris. Map ----- +----------------------------------------------------+ | ???????????????????# ?????? ! ??????????????????? | | ?????????????"Y"???? ????? ??????????????????? | | ?????????????"""????? ???? ??????????????????? | | ?????????????????????? ??? !??????????????????? | | ????????????????#?????? #?? ??????????????????? | | ????????????????# ???? ###########?????????????? | | ????????????????# ??# #?????????????? | | ????????????????# #[ * #?????????????? | | ?????????????????? # *[ #?????????????? | | ?????????????????????????# == #?????????????? | | ?????????????????????????##/#########????????????? | | ?????????????????????????## ^ #????????????? | | ??????????????????????????#% % ^ #????????????? | | ?"????????????????????????# #????????????? | | ?T????????????????????????# #????????????? | | ?"????????????????????????# #????????????? | | ??????????????????????????# #????????????? | | ??????????????????????????# ^ ####+###?????? | | ""???????????????????#????# #?????? | | ""???????????????????# ???# ##????# | | ""???????????????????#%???# " ##????# | | ?????????????????????#u???# """ #?????# | | ???????????????????###%####! G #?????# | | ?????????? ?????# %x[##%* """ ####### | | ?????????? ### kp%=%!!! k" % | | ?????????? + k km=@*%=k | | ?????????????????###x!=pk*m[[ u | | ???????????????????# =ku##### | | ???????????????????##u %####?# | | ????????????????????# ?????# """ ######## | | ????????????????????# ?????# """ #!! | | ????????????????????# ?????# """" #[== | | ????????????????????# ?????# """" #! | | ????????????????????# ?????+ """" ######## | | ????????????????????# ?????# """" ######## | | ????????????????????? ?????# " " % | | ????????????????????? ?????# ##### ## | | ????????????????????? ?????# !] #???# #? | | ?????????????????#####+#####?# ! #???# #? | | ?????????????????# ######+#########???# #? | | ?????????????????# """ """ # #??????# #? | | ?????????????????# """ """ # #??????# #? | | ?????????????????# """ """ # #?######+## | | ?????????????????# # #?# | | ?????????????????# # #?# | | ?????????????????# # #?# < | | ?????????????????# =# #?# | | ?????????????????##########"""""########?######### | | ?????????????????# %= "##????????????#### | | ?????????????????# ! " #????????????# | +----------------------------------------------------+ Best States ------------- Heat Dissipation 35 Energy Generation 18 Energy Capacity 250 Matter Stores 300 Matter Capacity 300 Sight Range 16 Terrain Scan Range 16 Terrain Scan Density 10 Armor Coverage 375 Utility Shielding 66 Evasion (%) 55 Targeting Accuracy 6 Matter Filtering 30 Item Schematics ----------------- Rocket Launcher | -9/Materials | Scanalyzed Lgt. Nuclear Core | -9/Materials | Scanalyzed Imp. Aluminum Leg | -9/Materials | Scanalyzed Lgt. Armor Plating | -9/Materials | Scanalyzed Hrd. Medium Armor Plating | -8/Materials | Scanalyzed Robot Schematics ------------------ None Fabricated ------------ Nothing Alien Tech Used ----------------- None Achievements -------------- It's Just You Troublemaker Challenges ------------ None Game ------ Seed TransdimensionalCombatBox Manual? 0 Play Time 02:03:00 Cumulative 7.5 hours Start 2024.04.15 @ 23:36:17 End 2024.04.20 @ 15:11:13 Sessions 5 Manual Loads 0 Difficulty Rogue Special Mode None Game No. 5 Rogue 5 Adventurer 0 Explorer 0 Win Type - Total 0 Types 0/0/0/0/0/0/0/0/0 Lore% 13 Gallery% 10 Achievement% 10 Wizard Run 0 Options --------- Layout 1 ASCII 0 Keyboard 0 Movement Numpad Keybinds 0 Fullscreen 1 Font 48/Smallcaps Map View 50x35 Zoom Use 0% Tactical HUD 1 Map Filters NONE Filters NONE Steam 1 RUN: 6dc00a1a-0b00-4710-8da7-050ba568bd4a